[Event "Early-Titled-Tuesday-Blitz-August-29-2023"]
[Site "Chess.com"]
[Date "2023.08.29"]
[Round "3"]
[White "superfast64"]
[Black "sofaceindisguise"]
[Result "0-1"]
[WhiteElo "2421"]
[BlackElo "2614"]
[TimeControl "180+1"]
[EndTime "8:28:10 PDT"]
[Termination "sofaceindisguise won by resignation"]

1. d4 {[%clk 0:03:00.9]} 1... d5 {[%clk 0:03:00.1]} 2. Bg5 {[%clk 0:03:01.2]}
2... c5 {[%clk 0:03:00.1]} 3. e3 {[%clk 0:03:01.2]} 3... Nc6 {[%clk 0:03:00]} 4.
c3 {[%clk 0:03:00.7]} 4... Qb6 {[%clk 0:02:59.7]} 5. Qc2 {[%clk 0:02:58]} 5...
Bf5 {[%clk 0:02:56.6]} 6. dxc5 {[%clk 0:02:58.3]} 6... Bxc2 {[%clk 0:02:53.7]}
7. cxb6 {[%clk 0:02:57.8]} 7... Bxb1 {[%clk 0:02:51.7]} 8. Rxb1 {[%clk
0:02:44.2]} 8... axb6 {[%clk 0:02:52]} 9. a3 {[%clk 0:02:41]} 9... e6 {[%clk
0:02:51.2]} 10. Bb5 {[%clk 0:02:23.9]} 10... Ne7 {[%clk 0:02:49.8]} 11. Nf3
{[%clk 0:02:22.9]} 11... f6 {[%clk 0:02:45.9]} 12. Bh4 {[%clk 0:02:19.6]} 12...
Nf5 {[%clk 0:02:43.6]} 13. Bg3 {[%clk 0:02:17.6]} 13... e5 {[%clk 0:02:40.6]}
14. Rd1 {[%clk 0:02:14.6]} 14... O-O-O {[%clk 0:02:39.2]} 15. Nh4 {[%clk
0:02:05.8]} 15... Nd6 {[%clk 0:02:35.7]} 16. Be2 {[%clk 0:02:00.7]} 16... Ne4
{[%clk 0:02:27.7]} 17. Nf3 {[%clk 0:01:47.8]} 17... g5 {[%clk 0:02:17.2]} 18.
Nd2 {[%clk 0:01:42.1]} 18... Nxd2 {[%clk 0:02:05.6]} 19. Rxd2 {[%clk 0:01:43]}
19... h5 {[%clk 0:02:05.7]} 20. h3 {[%clk 0:01:38.1]} 20... f5 {[%clk
0:01:54.9]} 21. O-O {[%clk 0:01:30.8]} 21... f4 {[%clk 0:01:54.8]} 22. Bh2
{[%clk 0:01:24.7]} 22... fxe3 {[%clk 0:01:50.1]} 23. fxe3 {[%clk 0:01:25.6]}
23... Bc5 {[%clk 0:01:50.4]} 24. Kh1 {[%clk 0:01:19.1]} 24... Bxe3 {[%clk
0:01:50.4]} 25. Rd3 {[%clk 0:01:17.4]} 25... Bf4 {[%clk 0:01:47.9]} 26. g3
{[%clk 0:01:17.4]} 26... e4 {[%clk 0:01:48.1]} 27. Rdd1 {[%clk 0:01:15.4]} 27...
Bc7 {[%clk 0:01:47.2]} 28. g4 {[%clk 0:01:10.3]} 28... Bxh2 {[%clk 0:01:46]} 29.
Kxh2 {[%clk 0:01:09.7]} 29... hxg4 {[%clk 0:01:44.6]} 30. Bxg4+ {[%clk
0:01:10.6]} 30... Kb8 {[%clk 0:01:44.8]} 31. Rf5 {[%clk 0:01:09.4]} 31... d4
{[%clk 0:01:42.2]} 32. cxd4 {[%clk 0:01:07.5]} 32... Nxd4 {[%clk 0:01:42.5]} 33.
Rxg5 {[%clk 0:01:07.3]} 33... Rhe8 {[%clk 0:01:41.7]} 34. h4 {[%clk 0:01:01.8]}
34... e3 {[%clk 0:01:41]} 35. Re1 {[%clk 0:00:59.1]} 35... Re4 {[%clk
0:01:29.4]} 36. Kg3 {[%clk 0:00:55.5]} 36... e2 {[%clk 0:01:06.9]} 37. Rg7
{[%clk 0:00:51.6]} 37... Rf8 {[%clk 0:01:02.2]} 38. h5 {[%clk 0:00:42.9]} 38...
Rf1 {[%clk 0:01:01.8]} 39. Rxe2 {[%clk 0:00:28]} 39... Nxe2+ {[%clk 0:01:01.4]}
40. Bxe2 {[%clk 0:00:21.5]} 40... Rxe2 {[%clk 0:01:01.2]} 41. h6 {[%clk
0:00:22.4]} 41... Rg1+ {[%clk 0:01:01.1]} 42. Kf3 {[%clk 0:00:22.3]} 42... Rxg7
{[%clk 0:01:01.3]} 43. Kxe2 {[%clk 0:00:20.5]} 43... Rh7 {[%clk 0:01:01.2]} 0-1

[Event "Early-Titled-Tuesday-Blitz-August-29-2023"]
[Site "Chess.com"]
[Date "2023.08.29"]
[Round "3"]
[White "Alexander_Donchenko"]
[Black "Mihaiionescu1"]
[Result "1/2-1/2"]
[WhiteElo "2846"]
[BlackElo "2516"]
[TimeControl "180+1"]
[EndTime "8:28:12 PDT"]
[Termination "Game drawn by repetition"]

1. Nf3 {[%clk 0:03:00.9]} 1... Nf6 {[%clk 0:02:55.2]} 2. g3 {[%clk 0:03:01.3]}
2... e6 {[%clk 0:02:52.4]} 3. Bg2 {[%clk 0:03:01.7]} 3... d5 {[%clk 0:02:52.5]}
4. O-O {[%clk 0:03:02.4]} 4... Be7 {[%clk 0:02:51.1]} 5. c4 {[%clk 0:03:03.1]}
5... O-O {[%clk 0:02:49.6]} 6. b3 {[%clk 0:03:03.7]} 6... b6 {[%clk 0:02:43.6]}
7. Bb2 {[%clk 0:03:04.1]} 7... Bb7 {[%clk 0:02:43.9]} 8. e3 {[%clk 0:03:04.5]}
8... dxc4 {[%clk 0:02:42.3]} 9. bxc4 {[%clk 0:03:04.5]} 9... c5 {[%clk
0:02:42.4]} 10. Nc3 {[%clk 0:03:03]} 10... a6 {[%clk 0:02:34.8]} 11. Qe2 {[%clk
0:03:02.7]} 11... Qc7 {[%clk 0:02:34.1]} 12. Rac1 {[%clk 0:02:55.3]} 12... Nbd7
{[%clk 0:02:33.9]} 13. Rfd1 {[%clk 0:02:53.9]} 13... Rfd8 {[%clk 0:02:33.4]} 14.
h3 {[%clk 0:02:50.7]} 14... Rac8 {[%clk 0:02:33.6]} 15. g4 {[%clk 0:02:50.8]}
15... h6 {[%clk 0:02:32.5]} 16. Ba1 {[%clk 0:02:46.9]} 16... Nf8 {[%clk
0:02:27.1]} 17. d3 {[%clk 0:02:42]} 17... Ng6 {[%clk 0:02:25.3]} 18. Ne1 {[%clk
0:02:37.6]} 18... Nh4 {[%clk 0:02:22.7]} 19. Bxb7 {[%clk 0:02:34.8]} 19... Qxb7
{[%clk 0:02:22.1]} 20. f4 {[%clk 0:02:32]} 20... Rd7 {[%clk 0:02:05.5]} 21. Qf2
{[%clk 0:02:31.6]} 21... g5 {[%clk 0:02:01.5]} 22. Rb1 {[%clk 0:02:27]} 22...
Rcd8 {[%clk 0:01:56.9]} 23. Na4 {[%clk 0:02:22.4]} 23... Ne4 {[%clk 0:01:42.7]}
24. Qb2 {[%clk 0:01:59.8]} 24... Bf6 {[%clk 0:01:41.5]} 25. Qxb6 {[%clk
0:01:59.9]} 25... Qa8 {[%clk 0:01:28.1]} 26. dxe4 {[%clk 0:01:46.8]} 26... Rxd1
{[%clk 0:00:34.5]} 27. Bxf6 {[%clk 0:01:45.8]} 27... Qxe4 {[%clk 0:00:25.9]} 28.
Rxd1 {[%clk 0:01:44.6]} 28... Qxe3+ {[%clk 0:00:25.3]} 29. Kf1 {[%clk
0:01:37.3]} 29... Qxf4+ {[%clk 0:00:21.2]} 30. Ke2 {[%clk 0:01:32.7]} 30... Qe4+
{[%clk 0:00:19.3]} 31. Kf2 {[%clk 0:01:31.8]} 31... Qf4+ {[%clk 0:00:16.3]} 32.
Kg1 {[%clk 0:01:29.8]} 32... Qg3+ {[%clk 0:00:15]} 33. Kh1 {[%clk 0:01:21.6]}
33... Qxh3+ {[%clk 0:00:13.6]} 34. Kg1 {[%clk 0:01:21.9]} 34... Qxg4+ {[%clk
0:00:12.6]} 35. Kh2 {[%clk 0:01:21.6]} 35... Qf4+ {[%clk 0:00:08.6]} 36. Kh3
{[%clk 0:01:21.4]} 36... Qe3+ {[%clk 0:00:07.9]} 37. Kg4 {[%clk 0:01:16.4]}
37... Qe2+ {[%clk 0:00:08.2]} 38. Kg3 {[%clk 0:01:16.6]} 38... Qe3+ {[%clk
0:00:08.2]} 39. Kg4 {[%clk 0:01:15.3]} 39... Qe2+ {[%clk 0:00:07.2]} 40. Kh3
{[%clk 0:01:15.4]} 40... Qf1+ {[%clk 0:00:05.6]} 41. Kh2 {[%clk 0:01:10.8]}
41... Qf2+ {[%clk 0:00:04.6]} 42. Kh1 {[%clk 0:01:11.5]} 42... Qf1+ {[%clk
0:00:04.7]} 43. Kh2 {[%clk 0:01:12.1]} 43... Qf2+ {[%clk 0:00:04.9]} 44. Kh3
{[%clk 0:01:12.8]} 44... Qf1+ {[%clk 0:00:04.6]} 45. Kg3 {[%clk 0:01:13.7]}
45... Qg1+ {[%clk 0:00:03.9]} 46. Kh3 {[%clk 0:01:11.8]} 46... Qf1+ {[%clk
0:00:04.1]} 1/2-1/2

[Event "Early-Titled-Tuesday-Blitz-August-29-2023"]
[Site "Chess.com"]
[Date "2023.08.29"]
[Round "3"]
[White "RandomNoob04"]
[Black "Shivananda1964"]
[Result "1-0"]
[WhiteElo "2655"]
[BlackElo "2450"]
[TimeControl "180+1"]
[EndTime "8:28:14 PDT"]
[Termination "RandomNoob04 won on time"]

1. e4 {[%clk 0:03:00.9]} 1... Nc6 {[%clk 0:02:59.2]} 2. Nf3 {[%clk 0:02:55.8]}
2... e5 {[%clk 0:02:59]} 3. Bc4 {[%clk 0:02:56.4]} 3... Nf6 {[%clk 0:02:58.5]}
4. d4 {[%clk 0:02:52.3]} 4... exd4 {[%clk 0:02:57.6]} 5. O-O {[%clk 0:02:53.1]}
5... Nxe4 {[%clk 0:02:56.5]} 6. Nc3 {[%clk 0:02:53.8]} 6... Nxc3 {[%clk
0:02:29.8]} 7. bxc3 {[%clk 0:02:53.5]} 7... Be7 {[%clk 0:02:19.2]} 8. cxd4
{[%clk 0:02:51.6]} 8... d5 {[%clk 0:02:18.1]} 9. Bd3 {[%clk 0:02:42.7]} 9... O-O
{[%clk 0:02:18.3]} 10. h3 {[%clk 0:02:38.5]} 10... Bf6 {[%clk 0:02:12.9]} 11. c3
{[%clk 0:02:38.6]} 11... g6 {[%clk 0:02:11.6]} 12. Bh6 {[%clk 0:02:36.5]} 12...
Re8 {[%clk 0:02:11.4]} 13. Qd2 {[%clk 0:02:34.8]} 13... Ne7 {[%clk 0:02:04.5]}
14. Rfe1 {[%clk 0:02:32.5]} 14... Bf5 {[%clk 0:01:53.4]} 15. Bf1 {[%clk
0:02:11.7]} 15... Be4 {[%clk 0:01:33.4]} 16. Qf4 {[%clk 0:02:07.2]} 16... Nf5
{[%clk 0:01:27.8]} 17. Bg5 {[%clk 0:01:49]} 17... Kg7 {[%clk 0:00:43.9]} 18. g4
{[%clk 0:01:33.9]} 18... Nd6 {[%clk 0:00:23.1]} 19. Bh6+ {[%clk 0:01:31.7]}
19... Kg8 {[%clk 0:00:22.9]} 20. Ng5 {[%clk 0:01:24.1]} 20... Bg7 {[%clk
0:00:07]} 21. Bxg7 {[%clk 0:00:39.5]} 21... Kxg7 {[%clk 0:00:07.4]} 22. f3
{[%clk 0:00:40.4]} 22... Bc2 {[%clk 0:00:04.4]} 23. h4 {[%clk 0:00:35.7]} 23...
h6 {[%clk 0:00:03.9]} 24. Nh3 {[%clk 0:00:35.1]} 24... Qf6 {[%clk 0:00:02.5]}
25. Qg3 {[%clk 0:00:33.7]} 25... Ba4 {[%clk 0:00:02.6]} 26. Re5 {[%clk
0:00:33.7]} 26... c6 {[%clk 0:00:01.4]} 27. Rae1 {[%clk 0:00:34.3]} 27... Re6
{[%clk 0:00:01]} 28. Nf4 {[%clk 0:00:34]} 1-0

[Event "Early-Titled-Tuesday-Blitz-August-29-2023"]
[Site "Chess.com"]
[Date "2023.08.29"]
[Round "3"]
[White "Sina_Movahed"]
[Black "Virgo15"]
[Result "1/2-1/2"]
[WhiteElo "2973"]
[BlackElo "2763"]
[TimeControl "180+1"]
[EndTime "8:28:15 PDT"]
[Termination "Game drawn by repetition"]

1. e4 {[%clk 0:03:00.9]} 1... e6 {[%clk 0:03:00.2]} 2. d4 {[%clk 0:02:59.9]}
2... d5 {[%clk 0:03:00.6]} 3. e5 {[%clk 0:03:00.5]} 3... c5 {[%clk 0:03:00.8]}
4. c3 {[%clk 0:03:01.1]} 4... Nc6 {[%clk 0:03:01.4]} 5. Nf3 {[%clk 0:03:01.8]}
5... Bd7 {[%clk 0:03:02]} 6. Bd3 {[%clk 0:03:00.1]} 6... cxd4 {[%clk 0:03:02.2]}
7. cxd4 {[%clk 0:02:59.6]} 7... Qb6 {[%clk 0:03:00.8]} 8. Bc2 {[%clk 0:02:57.5]}
8... Nb4 {[%clk 0:03:00.1]} 9. O-O {[%clk 0:02:56.1]} 9... Nxc2 {[%clk
0:02:58.5]} 10. Qxc2 {[%clk 0:02:57]} 10... Rc8 {[%clk 0:02:56.8]} 11. Nc3
{[%clk 0:02:57.5]} 11... Ne7 {[%clk 0:02:57.1]} 12. Be3 {[%clk 0:02:52.3]} 12...
Nf5 {[%clk 0:02:56.3]} 13. Qd2 {[%clk 0:02:52.4]} 13... Be7 {[%clk 0:02:54.3]}
14. g4 {[%clk 0:02:50.8]} 14... Nxe3 {[%clk 0:02:47.9]} 15. fxe3 {[%clk
0:02:51.7]} 15... O-O {[%clk 0:02:47.9]} 16. g5 {[%clk 0:02:48.9]} 16... Qa6
{[%clk 0:02:42.3]} 17. h4 {[%clk 0:02:44.1]} 17... b5 {[%clk 0:02:39.9]} 18.
Rfc1 {[%clk 0:02:41.5]} 18... b4 {[%clk 0:02:40.1]} 19. Ne2 {[%clk 0:02:41]}
19... Rxc1+ {[%clk 0:02:37.6]} 20. Rxc1 {[%clk 0:02:41.9]} 20... Rc8 {[%clk
0:02:36.9]} 21. Kf2 {[%clk 0:02:41.3]} 21... Qb7 {[%clk 0:02:30.2]} 22. Nf4
{[%clk 0:02:37.3]} 22... a5 {[%clk 0:02:29.4]} 23. Nd3 {[%clk 0:02:34.6]} 23...
Qb5 {[%clk 0:01:57]} 24. Nfe1 {[%clk 0:02:18.9]} 24... a4 {[%clk 0:01:53]} 25.
b3 {[%clk 0:02:15.2]} 25... a3 {[%clk 0:01:46.8]} 26. Rxc8+ {[%clk 0:02:10.3]}
26... Bxc8 {[%clk 0:01:46.7]} 27. Qc1 {[%clk 0:02:11.2]} 27... Ba6 {[%clk
0:01:41.5]} 28. Qc7 {[%clk 0:02:08.8]} 28... Bf8 {[%clk 0:01:42.1]} 29. Ke2
{[%clk 0:02:06.8]} 29... g6 {[%clk 0:01:40.5]} 30. Kd2 {[%clk 0:02:06.3]} 30...
Kg7 {[%clk 0:01:36.1]} 31. Qc2 {[%clk 0:01:37.7]} 31... Kg8 {[%clk 0:01:34.5]}
32. Ng2 {[%clk 0:01:36.8]} 32... h6 {[%clk 0:01:27.2]} 33. Ngf4 {[%clk
0:01:35.4]} 33... hxg5 {[%clk 0:01:26.2]} 34. hxg5 {[%clk 0:01:36.3]} 34... Be7
{[%clk 0:01:22]} 35. Nc5 {[%clk 0:01:13.8]} 35... Bxg5 {[%clk 0:00:55.8]} 36.
Ncxe6 {[%clk 0:01:12.2]} 36... Bxf4 {[%clk 0:00:52.1]} 37. Nxf4 {[%clk
0:01:13.1]} 37... Qf1 {[%clk 0:00:51.1]} 38. Qc7 {[%clk 0:00:51.9]} 38... Qf2+
{[%clk 0:00:51]} 39. Kd1 {[%clk 0:00:52]} 39... Qf1+ {[%clk 0:00:32.5]} 40. Kd2
{[%clk 0:00:51.4]} 40... Qf2+ {[%clk 0:00:32.5]} 41. Kd1 {[%clk 0:00:51.8]}
41... Qf1+ {[%clk 0:00:23.6]} 42. Kd2 {[%clk 0:00:51]} 1/2-1/2

[Event "Early-Titled-Tuesday-Blitz-August-29-2023"]
[Site "Chess.com"]
[Date "2023.08.29"]
[Round "3"]
[White "Shuvalov"]
[Black "Chernobay_Artem"]
[Result "1-0"]
[WhiteElo "2463"]
[BlackElo "2631"]
[TimeControl "180+1"]
[EndTime "8:28:21 PDT"]
[Termination "Shuvalov won on time"]

1. d4 {[%clk 0:03:00.9]} 1... Nf6 {[%clk 0:02:59.2]} 2. c4 {[%clk 0:03:00.6]}
2... g6 {[%clk 0:02:58.5]} 3. Nc3 {[%clk 0:03:00.7]} 3... Bg7 {[%clk 0:02:58.7]}
4. e4 {[%clk 0:03:00.9]} 4... d6 {[%clk 0:02:58.8]} 5. Nf3 {[%clk 0:03:01.4]}
5... O-O {[%clk 0:02:59.3]} 6. Be2 {[%clk 0:03:02]} 6... e5 {[%clk 0:02:59.3]}
7. O-O {[%clk 0:03:02.3]} 7... Nc6 {[%clk 0:02:58.8]} 8. d5 {[%clk 0:03:02.6]}
8... Ne7 {[%clk 0:02:59]} 9. Ne1 {[%clk 0:03:03.2]} 9... Nd7 {[%clk 0:02:58.6]}
10. f3 {[%clk 0:03:03.6]} 10... f5 {[%clk 0:02:58.3]} 11. g4 {[%clk 0:03:04.2]}
11... Nf6 {[%clk 0:02:50.3]} 12. Nd3 {[%clk 0:03:03.6]} 12... c6 {[%clk
0:02:46.9]} 13. Be3 {[%clk 0:03:02.8]} 13... Kh8 {[%clk 0:02:41.8]} 14. h4
{[%clk 0:02:55.1]} 14... b5 {[%clk 0:02:33.1]} 15. Nb4 {[%clk 0:02:52.1]} 15...
cxd5 {[%clk 0:02:02.7]} 16. cxd5 {[%clk 0:02:49.1]} 16... a5 {[%clk 0:01:58.9]}
17. Nc6 {[%clk 0:02:46.5]} 17... Nxc6 {[%clk 0:01:58.5]} 18. dxc6 {[%clk
0:02:47.4]} 18... b4 {[%clk 0:01:57.9]} 19. Nb5 {[%clk 0:02:33.9]} 19... d5
{[%clk 0:01:18.7]} 20. g5 {[%clk 0:02:16.2]} 20... d4 {[%clk 0:01:03.3]} 21.
gxf6 {[%clk 0:02:14.8]} 21... Bxf6 {[%clk 0:01:02.7]} 22. Bf2 {[%clk 0:01:44]}
22... Bxh4 {[%clk 0:01:00.7]} 23. Qd2 {[%clk 0:01:17.6]} 23... fxe4 {[%clk
0:00:51]} 24. fxe4 {[%clk 0:01:11]} 24... Bh3 {[%clk 0:00:51]} 25. Qh6 {[%clk
0:01:00.7]} 25... Bxf2+ {[%clk 0:00:34.8]} 26. Rxf2 {[%clk 0:01:01.6]} 26...
Rxf2 {[%clk 0:00:35.3]} 27. Kxf2 {[%clk 0:01:02.4]} 27... Qf6+ {[%clk
0:00:24.9]} 28. Kg3 {[%clk 0:00:41.5]} 28... Rf8 {[%clk 0:00:12.8]} 29. Kxh3
{[%clk 0:00:41.5]} 29... Re8 {[%clk 0:00:01.3]} 30. Rf1 {[%clk 0:00:41.1]} 30...
Qxc6 {[%clk 0:00:01.4]} 31. Rf8+ {[%clk 0:00:40.6]} 1-0

[Event "Early-Titled-Tuesday-Blitz-August-29-2023"]
[Site "Chess.com"]
[Date "2023.08.29"]
[Round "3"]
[White "Kotofeyca"]
[Black "astralpulse"]
[Result "0-1"]
[WhiteElo "2435"]
[BlackElo "2628"]
[TimeControl "180+1"]
[EndTime "8:28:28 PDT"]
[Termination "astralpulse won by checkmate"]

1. d4 {[%clk 0:02:53.3]} 1... d6 {[%clk 0:02:58.7]} 2. c4 {[%clk 0:02:52.9]}
2... e5 {[%clk 0:02:57.7]} 3. dxe5 {[%clk 0:02:43.8]} 3... dxe5 {[%clk
0:02:57.1]} 4. Qxd8+ {[%clk 0:02:44.7]} 4... Kxd8 {[%clk 0:02:57.2]} 5. Nc3
{[%clk 0:02:45.4]} 5... c6 {[%clk 0:02:57.2]} 6. b3 {[%clk 0:02:38.6]} 6... Be6
{[%clk 0:02:52.5]} 7. Bb2 {[%clk 0:02:38.7]} 7... Nd7 {[%clk 0:02:52.7]} 8. g3
{[%clk 0:02:39]} 8... Kc7 {[%clk 0:02:39.2]} 9. O-O-O {[%clk 0:02:38.1]} 9... a5
{[%clk 0:02:35.9]} 10. Nf3 {[%clk 0:02:36.8]} 10... f6 {[%clk 0:02:35.1]} 11. h4
{[%clk 0:02:27]} 11... Nh6 {[%clk 0:02:30.5]} 12. Bh3 {[%clk 0:02:18.9]} 12...
Ng4 {[%clk 0:02:30.3]} 13. Ne4 {[%clk 0:02:14.2]} 13... h5 {[%clk 0:02:25.5]}
14. Nh2 {[%clk 0:01:56.1]} 14... Re8 {[%clk 0:01:30.9]} 15. Nxg4 {[%clk
0:01:53.4]} 15... hxg4 {[%clk 0:01:29.4]} 16. Bg2 {[%clk 0:01:52.3]} 16... Nc5
{[%clk 0:01:28.2]} 17. Rd2 {[%clk 0:01:32.5]} 17... a4 {[%clk 0:01:25.9]} 18.
Nxc5 {[%clk 0:01:25.7]} 18... Bxc5 {[%clk 0:01:24.9]} 19. e3 {[%clk 0:01:26.6]}
19... Bb4 {[%clk 0:01:17.8]} 20. Rd3 {[%clk 0:01:19.7]} 20... Bf5 {[%clk
0:01:17.4]} 21. e4 {[%clk 0:01:13.9]} 21... Be6 {[%clk 0:01:15.8]} 22. Rhd1
{[%clk 0:01:11.7]} 22... Ra8 {[%clk 0:01:10.7]} 23. Bf1 {[%clk 0:01:03.7]} 23...
axb3 {[%clk 0:01:07.2]} 24. axb3 {[%clk 0:01:04.6]} 24... Ra2 {[%clk 0:01:06.4]}
25. Kb1 {[%clk 0:01:03.8]} 25... Rha8 {[%clk 0:01:05.7]} 26. Be2 {[%clk
0:00:59.6]} 26... Bc5 {[%clk 0:01:04.7]} 27. Rf1 {[%clk 0:00:55.1]} 27... Bd4
{[%clk 0:00:59.2]} 28. Rd2 {[%clk 0:00:51.6]} 28... c5 {[%clk 0:00:57.6]} 29.
Kc1 {[%clk 0:00:44.4]} 29... Kc6 {[%clk 0:00:50.5]} 30. Bd3 {[%clk 0:00:42.6]}
30... R2a6 {[%clk 0:00:42.3]} 31. Bb1 {[%clk 0:00:37.7]} 31... Rb6 {[%clk
0:00:40.1]} 32. Bc2 {[%clk 0:00:36.2]} 32... Rb4 {[%clk 0:00:39.9]} 33. Kb1
{[%clk 0:00:33.7]} 33... b5 {[%clk 0:00:39.9]} 34. cxb5+ {[%clk 0:00:27.5]}
34... Rxb5 {[%clk 0:00:39.7]} 35. Rc1 {[%clk 0:00:23.3]} 35... Bxb3 {[%clk
0:00:37.5]} 36. Bd3 {[%clk 0:00:14.5]} 36... Ba2+ {[%clk 0:00:36.9]} 37. Ka1
{[%clk 0:00:11.6]} 37... Bc4+ {[%clk 0:00:35.5]} 38. Kb1 {[%clk 0:00:11.6]}
38... Bxd3+ {[%clk 0:00:34.1]} 39. Rxd3 {[%clk 0:00:11.6]} 39... Rxb2# {[%clk
0:00:34.1]} 0-1

[Event "Early-Titled-Tuesday-Blitz-August-29-2023"]
[Site "Chess.com"]
[Date "2023.08.29"]
[Round "3"]
[White "jcibarra"]
[Black "ahkashefi2800"]
[Result "1-0"]
[WhiteElo "2877"]
[BlackElo "2577"]
[TimeControl "180+1"]
[EndTime "8:28:29 PDT"]
[Termination "jcibarra won by checkmate"]

1. e4 {[%clk 0:03:00.9]} 1... c6 {[%clk 0:02:56.3]} 2. Nf3 {[%clk 0:03:01]} 2...
d5 {[%clk 0:02:55.8]} 3. d3 {[%clk 0:03:01.8]} 3... Bg4 {[%clk 0:02:52.8]} 4. h3
{[%clk 0:03:01.6]} 4... Bxf3 {[%clk 0:02:49.3]} 5. Qxf3 {[%clk 0:03:02.5]} 5...
dxe4 {[%clk 0:02:49.6]} 6. dxe4 {[%clk 0:03:02.4]} 6... Nd7 {[%clk 0:02:49.8]}
7. g3 {[%clk 0:03:01.8]} 7... Ngf6 {[%clk 0:02:49.5]} 8. Bg2 {[%clk 0:03:00.9]}
8... e5 {[%clk 0:02:49.3]} 9. O-O {[%clk 0:03:01.4]} 9... Bc5 {[%clk 0:02:49]}
10. a4 {[%clk 0:03:01.9]} 10... O-O {[%clk 0:02:48.5]} 11. Nd2 {[%clk
0:03:02.5]} 11... a5 {[%clk 0:02:47.4]} 12. Nc4 {[%clk 0:03:02.7]} 12... Qe7
{[%clk 0:02:45.7]} 13. Qe2 {[%clk 0:03:03]} 13... Rfd8 {[%clk 0:02:39]} 14. Bd2
{[%clk 0:03:02.9]} 14... Bb4 {[%clk 0:02:10.1]} 15. c3 {[%clk 0:03:03.3]} 15...
Bc5 {[%clk 0:02:10]} 16. Kh2 {[%clk 0:03:04]} 16... Nb6 {[%clk 0:02:08.6]} 17.
Ne3 {[%clk 0:03:03.4]} 17... Qe6 {[%clk 0:02:03.1]} 18. Nf5 {[%clk 0:02:40]}
18... g6 {[%clk 0:02:02.1]} 19. Nh6+ {[%clk 0:02:36.4]} 19... Kg7 {[%clk
0:02:01.9]} 20. Bg5 {[%clk 0:02:35.5]} 20... Rd6 {[%clk 0:01:26.4]} 21. Qc2
{[%clk 0:02:12.9]} 21... Rad8 {[%clk 0:01:17.3]} 22. Bf3 {[%clk 0:01:56.3]}
22... Rf8 {[%clk 0:00:37.7]} 23. Rad1 {[%clk 0:01:44.1]} 23... Ng8 {[%clk
0:00:37.1]} 24. Bg4 {[%clk 0:01:35.5]} 24... Qc4 {[%clk 0:00:24.6]} 25. b3
{[%clk 0:01:33]} 25... Qxf1 {[%clk 0:00:13.1]} 26. Rxf1 {[%clk 0:01:29.4]} 26...
Nxh6 {[%clk 0:00:13.3]} 27. Be7 {[%clk 0:01:29.3]} 27... Nxg4+ {[%clk
0:00:06.7]} 28. hxg4 {[%clk 0:01:30.2]} 28... Nd7 {[%clk 0:00:04.6]} 29. Bxd6
{[%clk 0:01:29.1]} 29... Bxd6 {[%clk 0:00:03.4]} 30. Rd1 {[%clk 0:01:27.8]}
30... Nf6 {[%clk 0:00:02.7]} 31. Rxd6 {[%clk 0:01:27]} 31... Nxg4+ {[%clk
0:00:02.5]} 32. Kg2 {[%clk 0:01:26.5]} 32... h5 {[%clk 0:00:03.4]} 33. Qd2
{[%clk 0:01:25]} 33... f6 {[%clk 0:00:02.7]} 34. Rd8 {[%clk 0:01:25.4]} 34...
Rf7 {[%clk 0:00:02.4]} 35. Rd7 {[%clk 0:01:26]} 35... f5 {[%clk 0:00:02.1]} 36.
Rxf7+ {[%clk 0:01:25.9]} 36... Kxf7 {[%clk 0:00:03]} 37. exf5 {[%clk 0:01:26.5]}
37... gxf5 {[%clk 0:00:03.9]} 38. Qd7+ {[%clk 0:01:25.7]} 38... Kf6 {[%clk
0:00:04.2]} 39. Qxb7 {[%clk 0:01:26.3]} 39... e4 {[%clk 0:00:03.8]} 40. Qxc6+
{[%clk 0:01:24.9]} 40... Kg5 {[%clk 0:00:04.3]} 41. Qb6 {[%clk 0:01:22.4]} 41...
Ne5 {[%clk 0:00:04.2]} 42. Qxa5 {[%clk 0:01:19]} 42... Nf3 {[%clk 0:00:04.3]}
43. Qd8+ {[%clk 0:01:18.9]} 43... Kg6 {[%clk 0:00:02.2]} 44. a5 {[%clk
0:01:18.7]} 44... h4 {[%clk 0:00:01.9]} 45. gxh4 {[%clk 0:01:18]} 45... Kh5
{[%clk 0:00:01.6]} 46. a6 {[%clk 0:01:17.5]} 46... Nxh4+ {[%clk 0:00:01.5]} 47.
Kh3 {[%clk 0:01:16.3]} 47... Nf3 {[%clk 0:00:02.4]} 48. a7 {[%clk 0:01:15.7]}
48... Ng1+ {[%clk 0:00:02.3]} 49. Kg2 {[%clk 0:01:15.4]} 49... Nf3 {[%clk
0:00:03.2]} 50. a8=Q {[%clk 0:01:15.5]} 50... Kg4 {[%clk 0:00:03.5]} 51. Qg8+
{[%clk 0:01:15.2]} 51... Kf4 {[%clk 0:00:03]} 52. Qab8+ {[%clk 0:01:14.3]} 52...
Ne5 {[%clk 0:00:02.8]} 53. Qg3# {[%clk 0:01:15.1]} 1-0